[Event "XLIV Barbera del Valles-A 2022"]
[Site "Barbera del Valles"]
[Date "2022.07.09"]
[Round "6.1"]
[White "Rios, Cristhian Camilo"]
[Black "Alsina Leal, Daniel"]
[Result "1-0"]
[ECO "D43"]
[WhiteElo "2399"]
[BlackElo "2525"]
[Annotator "TA"]
[PlyCount "111"]
[EventDate "2022.07.04"]
[EventType "swiss"]
[EventCountry "ESP"]
[SourceTitle "playchess.com"]
[Source "ChessBase"]
[SourceQuality "1"]
[TimeControl "5400+30"]

{[%evp 24,111,29,29,22,14,8,13,13,13,23,12,25,4,10,2,16,6,6,0,0,0,0,0,0,0,0,-5,0,0,8,10,21,27,24,18,18,19,18,18,20,7,11,0,0,0,0,0,0,0,8,8,24,24,23,23,20,20,22,8,77,77,86,79,355,355,441,441,441,440,440,412,440,432,432,394,450,409,29973,29974,29977,29978,29978,29979,29979,29980,29980,29981,29983,29984]} 1. d4 {[%emt 0:00:05]} d5 {[%emt 0:00:26]} 2. c4 {[%emt 0:00:13]} c6 {[%emt 0:00:13]} 3. Nf3 {[%emt 0:00:09]} Nf6 {[%emt 0:00:09]} 4. Nc3 {[%emt 0:00:07]} e6 {[%emt 0:00:17]} 5. Bg5 {[%emt 0:00:08]} h6 {[%emt 0:00:21]} 6. Bxf6 {[%emt 0:00:09]} Qxf6 {[%emt 0:00:07]} 7. e3 {[%emt 0:00:18]} Nd7 {[%emt 0:00:30]} 8. Bd3 {[%emt 1:33:21]} dxc4 {[%emt 0:00:41]} 9. Bxc4 {[%emt 0:00:00]} g6 {[%emt 0:00:16]} 10. O-O {[%emt 0:00:00]} Bg7 {[%emt 0:00:16]} 11. e4 {[%emt 0:00:00]} e5 {[%emt 0:01:51]} 12. d5 {[%emt 0:00:00]} Nb6 {[%emt 0:00:38]} 13. Bb3 {[%emt 0:00:00]} Bg4 {[%emt 0:00:59] D43: Semi-Slav: 5 Bg5 h6.} 14. h3 {[%emt 0:00:00]} Bxf3 {[%emt 0:00:32]} 15. Qxf3 {[%emt 0:00:00]} Qxf3 {[%emt 0:00:42] The position is equal.} 16. gxf3 {[%emt 0:04:00]} Ke7 {[%emt 0:18:34]} 17. Rac1 {[%emt 0:00:30]} Rhd8 {[%emt 0:02:53]} 18. dxc6 {[%emt 0:00:00]} bxc6 {[%emt 0:00:09] [#]} 19. Na4 $146 {[%emt 0:00:00]} ({Predecessor:} 19. Rfd1 Bf6 20. Rxd8 Rxd8 21. Na4 Rd6 22. Nc5 Rd2 23. Na6 Bh4 24. Rxc6 Bxf2+ 25. Kf1 {½-½ (38) L'Ami,A (2316)-Aginian,N (2307) Novi Sad 2009}) 19... Rd6 {[%emt 0:02:23]} 20. Nc5 {[%emt 0:00:00]} a5 {[%emt 1:08:33]} 21. Na4 {[%emt 0:00:00]} Rb8 {[%emt 0:00:00]} 22. Nxb6 {[%emt 0:00:00]} Rxb6 {[%emt 0:00:00]} 23. Rc5 {[%emt 0:00:00]} a4 {[%emt 0:00:00]} 24. Bxa4 {[%emt 0:00:00][%cal Ob2b4]} Rxb2 {[%emt 0:00:00]} 25. Bb3 {[%emt 0:00:00]} h5 {[%emt 0:00:00]} 26. Ra5 {[%emt 0:00:00]} Rd7 {[%emt 0:00:00]} 27. Rc1 {[%emt 0:00:00]} Bf6 {[%emt 0:00:00]} 28. Rxc6 {[%emt 0:00:00]} Bh4 {[%emt 0:00:00]} 29. Rxe5+ {[%emt 0:00:00]} Kf8 $1 {[%emt 0:00:00]} 30. Rd5 {[%emt 0:00:00]} Ra7 {[%emt 0:00:00]} 31. e5 {[%emt 0:00:00]} Bxf2+ {[%emt 0:05:30]} 32. Kh1 {[%emt 0:00:00]} (32. Kf1 {is interesting.} Bh4 33. Rd4 Bg3 34. e6) 32... Re7 {[%emt 0:00:30]} 33. Rc8+ {[%emt 0:00:00]} Kg7 $1 {[%emt 0:00:00]} 34. Rcd8 {[%emt 0:00:00]} Bg3 {[%emt 0:00:00]} 35. R8d7 {[%emt 0:00:00]} Rxd7 {[%emt 0:00:00]} 36. Rxd7 {[%emt 0:00:00]} Bxe5 $11 {[%emt 0:00:00][%mdl 4096] Endgame KRB-KRB} 37. f4 {[%emt 0:00:00]} Bb8 {[%emt 0:00:00]} 38. Rb7 {[%emt 0:00:00]} Bd6 {[%emt 0:00:00]} 39. Rxf7+ {[%emt 0:00:00]} Kh6 {[%emt 0:00:00]} 40. Rf6 {[%emt 0:00:00]} Rd2 {[%emt 0:00:00]} 41. a4 {[%emt 0:00:00][%cal Ba2a4,Ba4a5,Ba5a6][%mdl 32] White wants to play a5.} Be7 {[%emt 0:00:00]} (41... Kg7 $11 42. Rf7+ Kh6) 42. Re6 $16 {[%emt 0:00:00]} Bb4 {[%emt 0:02:08]} 43. f5 $1 {[%emt 0:00:00]} Rd6 $2 {[%emt 0:00:27][%mdl 8192] [#] This move loses the game for Black.} (43... Kg5 $16 {keeps fighting.}) 44. a5 $1 $18 {[%emt 0:00:00]} Rd3 {[%emt 0:02:32]} 45. Rxg6+ {[%emt 0:01:02]} Kh7 {[%emt 0:00:03]} 46. Bg8+ {[%emt 0:03:43]} Kh8 {[%emt 0:00:01]} 47. a6 {[%emt 0:00:31] Bc4 is the strong threat.} Rxh3+ {[%emt 0:00:20]} 48. Kg2 {[%emt 0:00:20]} Ra3 {[%emt 0:02:29]} 49. Bc4 {[%emt 0:01:38]} Kh7 {[%emt 0:00:00]} 50. Rg3 {[%emt 0:02:08] [#] Threatening mate with Rxa3.} Rxg3+ {[%emt 0:00:00]} (50... Ra4 $18 51. f6 Kh6) 51. Kxg3 {[%emt 0:00:06] KB-KB. White mates.} Bc5 {[%emt 0:00:00]} 52. f6 {[%emt 0:00:09][%cal Bf5f6,Bf6f7][%mdl 32]} Kg6 {[%emt 0:01:24]} 53. f7 {[%emt 0:00:08]} Kg7 {[%emt 0:00:32]} 54. Kh4 {[%emt 0:00:06]} Kf8 {[%emt 0:00:19]} 55. Kxh5 {[%emt 0:00:07]} Ke7 {[%emt 0:00:07]} 56. Kg6 {[%emt 0:00:06] Weighted Error Value: White=0.03 (flawless) /Black=0.34} 1-0

[Event "XLIV Barbera del Valles-A 2022"]
[Site "Barbera del Valles"]
[Date "2022.07.09"]
[Round "6.2"]
[White "Gkoumas, Georgios"]
[Black "Sanchez, Sebastian Felipe"]
[Result "1-0"]
[ECO "B47"]
[WhiteElo "2427"]
[BlackElo "2440"]
[Annotator "RC"]
[PlyCount "131"]
[EventDate "2022.07.04"]
[EventType "swiss"]
[EventCountry "ESP"]
[SourceTitle "playchess.com"]
[Source "ChessBase"]
[SourceQuality "1"]
[TimeControl "5400+30"]

1. e4 {[%emt 0:00:03]} c5 {[%emt 0:00:06]} 2. Nf3 {[%emt 0:00:16]} e6 {[%emt 0:00:08]} 3. d4 {[%emt 0:00:24]} cxd4 {[%emt 0:00:08]} 4. Nxd4 {[%emt 0:00:05]} Nc6 {[%emt 0:00:05]} 5. Nc3 {[%emt 0:00:33]} Qc7 {[%emt 0:00:06]} 6. Be2 {[%emt 0:00:29]} a6 {[%emt 0:00:18]} 7. Nxc6 {[%emt 0:00:20]} bxc6 {[%emt 0:02:19]} 8. Qd3 {[%emt 0:00:19]} Nf6 {[%emt 0:09:44]} 9. Qg3 {[%emt 0:00:14]} d6 {[%emt 0:00:12]} 10. O-O {[%emt 0:08:55]} Rb8 {[%emt 0:10:35]} 11. b3 {[%emt 0:28:27]} h5 {[%emt 0:07:17]} 12. Bg5 {[%emt 0:03:27]} Qa5 {[%emt 0:09:55]} 13. Rad1 {[%emt 0:11:20]} h4 {[%emt 0:19:03]} 14. Qe3 {[%emt 0:00:47]} Be7 {[%emt 0:05:51]} 15. Qd2 {[%emt 0:08:54]} e5 {[%emt 0:04:07]} 16. Qe3 {[%emt 0:08:43]} Be6 {[%emt 0:05:40]} 17. Rd2 {[%emt 0:03:15]} Qb6 {[%emt 0:09:30]} 18. Qd3 {[%emt 0:14:37]} a5 {[%emt 0:00:25]} 19. Na4 {[%emt 0:02:39]} Qb4 {[%emt 0:05:54]} 20. Bxf6 {[%emt 0:02:32]} gxf6 {[%emt 0:00:15]} 21. c4 {[%emt 0:00:28]} Rg8 {[%emt 0:05:39]} 22. Rfd1 {[%emt 0:00:06]} Rd8 {[%emt 0:00:38]} 23. Bf3 {[%emt 0:00:30]} Bf8 {[%emt 0:01:37]} 24. Qe3 {[%emt 0:01:18]} Bxc4 {[%emt 0:01:11]} 25. bxc4 {[%emt 0:00:08]} Qxa4 {[%emt 0:00:03]} 26. c5 {[%emt 0:01:00]} Qb4 {[%emt 0:00:15]} 27. cxd6 {[%emt 0:00:46]} Rxd6 {[%emt 0:00:59]} 28. Rxd6 {[%emt 0:01:51]} Bxd6 {[%emt 0:00:03]} 29. Qa7 {[%emt 0:00:03]} Kf8 {[%emt 0:01:05]} 30. Qd7 {[%emt 0:01:08]} Be7 {[%emt 0:01:23]} 31. Qc8+ {[%emt 0:00:22]} Kg7 {[%emt 0:00:03]} 32. Qg4+ {[%emt 0:00:02]} Kf8 {[%emt 0:00:21]} 33. Qc8+ {[%emt 0:00:02]} Kg7 {[%emt 0:00:03]} 34. Qg4+ {[%emt 0:00:02]} Kf8 {[%emt 0:00:04]} 35. Qxh4 {[%emt 0:00:01]} Ke8 {[%emt 0:01:39]} 36. Qh7 {[%emt 0:00:32]} Rf8 {[%emt 0:00:45]} 37. Qf5 {[%emt 0:00:01]} Qb7 {[%emt 0:00:01]} 38. h4 {[%emt 0:00:30]} Rh8 {[%emt 0:00:35]} 39. g3 {[%emt 0:00:26]} Kf8 {[%emt 0:00:29]} 40. Kg2 {[%emt 0:00:03]} Rh6 {[%emt 0:01:02]} 41. Rd7 {[%emt 0:00:36]} Qb2 {[%emt 0:00:12]} 42. Bh5 {[%emt 0:00:33]} Qxa2 {[%emt 0:00:33]} 43. Ra7 {[%emt 0:01:38]} Qe6 {[%emt 0:01:00]} 44. Ra8+ {[%emt 0:02:21]} Kg7 {[%emt 0:00:08]} 45. Qf3 {[%emt 0:00:05]} Bc5 {[%emt 0:00:33]} 46. Bg4 {[%emt 0:00:26]} Qa2 {[%emt 0:00:13]} 47. Bf5 {[%emt 0:00:18]} Qd2 {[%emt 0:01:11]} 48. Rc8 {[%emt 0:01:48]} a4 {[%emt 0:00:28]} 49. Rxc6 {[%emt 0:00:05]} Bd4 {[%emt 0:00:36]} 50. Ra6 {[%emt 0:00:12]} Qa2 {[%emt 0:00:15]} 51. Ra8 {[%emt 0:00:51]} Bc5 {[%emt 0:00:34]} 52. Ra5 {[%emt 0:00:34]} Bb6 {[%emt 0:00:05]} 53. Ra6 {[%emt 0:00:07]} Bc5 {[%emt 0:00:03]} 54. Rc6 {[%emt 0:01:28]} Bd4 {[%emt 0:00:03]} 55. Rc7 {[%emt 0:00:21]} a3 {[%emt 0:00:22]} 56. Qg4+ {[%emt 0:00:33]} Kf8 {[%emt 0:00:05]} 57. Rc8+ {[%emt 0:00:04]} Ke7 {[%emt 0:00:03]} 58. Qf3 {[%emt 0:01:52]} Qb2 {[%emt 0:00:49]} 59. Qd3 {[%emt 0:00:00]} a2 {[%emt 0:01:37]} 60. Qc4 {[%emt 0:00:00]} Bb6 {[%emt 0:00:28]} 61. Rb8 {[%emt 0:00:32]} Qxf2+ {[%emt 0:01:37]} 62. Kh3 {[%emt 0:00:01]} Qc5 {[%emt 0:00:15]} 63. Rb7+ {[%emt 0:00:00]} Kd6 {[%emt 0:00:25]} 64. Rd7+ {[%emt 0:00:00]} Kc6 {[%emt 0:00:03]} 65. Qa4+ {[%emt 0:00:00]} Qb5 {[%emt 0:00:09]} 66. Qa8+ {[%emt 0:00:00]} 1-0

[Event "XLIV Barbera del Valles-A 2022"]
[Site "Barbera del Valles"]
[Date "2022.07.09"]
[Round "6.3"]
[White "Asis Gargatagli, Hipolito"]
[Black "Pimpalkhare Vedant"]
[Result "0-1"]
[ECO "C13"]
[WhiteElo "2514"]
[BlackElo "2057"]
[Annotator "TA"]
[PlyCount "70"]
[EventDate "2022.07.04"]
[EventType "swiss"]
[EventCountry "ESP"]
[SourceTitle "playchess.com"]
[Source "ChessBase"]
[SourceQuality "1"]
[TimeControl "5400+30"]

{[%evp 14,70,31,8,18,34,26,28,2,16,45,39,54,68,67,46,66,59,74,24,73,78,71,73,91,76,75,66,83,76,73,69,92,74,105,95,118,91,90,21,134,143,206,205,199,168,191,169,383,382,363,354,399,398,356,99,75,-343,-332]} 1. e4 {[%emt 0:00:03]} e6 {[%emt 0:00:06]} 2. d4 {[%emt 0:00:05]} d5 {[%emt 0:00:05]} 3. Nc3 {[%emt 0:00:05]} Nf6 {[%emt 0:00:37]} 4. Bg5 {[%emt 0:00:06]} dxe4 {[%emt 0:01:31]} 5. Nxe4 {[%emt 0:00:06]} Be7 {[%emt 0:00:05]} 6. Bxf6 {[%emt 0:00:45]} gxf6 {[%emt 0:00:07]} 7. Nf3 {[%emt 0:00:43]} f5 {[%emt 0:00:08]} 8. Nc3 {[%emt 0:00:15]} a6 {[%emt 0:00:07] C13: French: Classical System: 4 Bg5 Be7, Alekhine-Chatard Attack.} 9. g3 {[%emt 0:05:04]} b5 {[%emt 0:03:18]} 10. Bg2 {[%emt 0:00:10] Black must now prevent Ne5.} Bb7 {[%emt 0:00:06] White has an edge.} 11. O-O {[%emt 0:00:05][%cal Od4d5]} Qd6 {[%emt 0:06:09] Prevents d5.} 12. Qe2 {[%emt 0:10:53][%cal Od4d5]} b4 {[%emt 0:04:20]} 13. Na4 {[%emt 0:07:59]} Nd7 {[%emt 0:01:06] Against Nc5} 14. c4 {[%emt 0:01:49][%cal Od4d5] [#]} bxc3 $146 {[%emt 0:02:22]} ({Predecessor:} 14... Be4 15. Rad1 O-O 16. d5 e5 17. c5 Bxf3 18. Bxf3 Nxc5 19. Nxc5 Qxc5 20. Qxe5 Qd6 21. Qxf5 {1-0 (34) Oparin,G (2607)-Esipenko,A (2571) Moscow 2018}) 15. Nxc3 {[%emt 0:08:32][%cal Od4d5]} Nf6 {[%emt 0:09:55] Inhibits d5.} 16. Rac1 {[%emt 0:05:30]} (16. Rfd1 $16) 16... O-O {[%emt 0:06:03]} (16... c5 $1 $11) 17. Rfd1 $16 {[%emt 0:07:32][%cal Od4d5]} Rac8 {[%emt 0:14:13]} 18. Na4 {[%emt 0:05:18]} Bd5 {[%emt 0:01:50]} 19. Nc5 {[%emt 0:01:08]} a5 {[%emt 0:07:41]} 20. b3 {[%emt 0:01:10]} Rfd8 {[%emt 0:02:39]} 21. Ne5 {[%emt 0:07:34]} Bxg2 {[%emt 0:02:40]} 22. Kxg2 {[%emt 0:00:16][%cal Od4d5]} Qd5+ {[%emt 0:36:22]} 23. Kg1 {[%emt 0:05:38]} Bf8 {[%emt 0:00:00]} 24. Rc4 {[%emt 0:05:18]} Qa8 {[%emt 0:00:00]} 25. h3 {[%emt 0:14:11]} Rd5 {[%emt 0:00:00]} 26. Ncd3 {[%emt 0:01:18] Pair of Knights!} ({Better is} 26. Qe3 $16) 26... Bh6 {[%emt 0:00:00]} (26... c5 $11) 27. Nc6 {[%emt 0:00:18] And now Ne7+ would win.} Bf8 {[%emt 0:00:00] Against Ne7+} (27... Re8 $16 {was called for.} 28. Nce5 Re7) 28. Nde5 $18 {[%emt 0:01:11]} Re8 {[%emt 0:00:00]} 29. g4 {[%emt 0:00:26]} Nd7 {[%emt 0:00:00]} 30. gxf5 {[%emt 0:03:30]} exf5 {[%emt 0:00:00] [#]} (30... Nxe5 {might work better.} 31. Nxe5 Bg7) 31. Qh5 {[%emt 0:03:45][%csl LRf5,LRf7]} Nxe5 {[%emt 0:00:00]} 32. Nxe5 {[%emt 0:00:04]} Bg7 {[%emt 0:01:52]} 33. Rxc7 {[%emt 0:03:49]} ({Not} 33. Qxf7+ Kh8 34. Nc6 (34. Rxc7 Rg8 $18) 34... Rd6 $18) 33... Rf8 {[%emt 0:00:09]} 34. Nd7 {[%emt 0:01:05] [#]} ({Much less strong is} 34. Nxf7 Qe8 $18) (34. Rxf7 $18 {is more deadly. Threatens to win with Rc1.} Rxf7 35. Qxf7+ Kh8 36. Re1) 34... Qd8 {[%emt 0:00:36]} 35. Rdc1 {[%emt 0:00:15][%mdl 8192]} Rxd7 {[%emt 0:00:06] Weighted Error Value: White=0.45/Black=0.24 (precise)} 0-1

[Event "XLIV Barbera del Valles-A 2022"]
[Site "Barbera del Valles"]
[Date "2022.07.09"]
[Round "6.4"]
[White "Moskalenko, Viktor"]
[Black "Narciso Dublan, Marc"]
[Result "1/2-1/2"]
[ECO "A80"]
[WhiteElo "2457"]
[BlackElo "2461"]
[Annotator "RC"]
[PlyCount "29"]
[EventDate "2022.07.04"]
[EventType "swiss"]
[EventCountry "ESP"]
[SourceTitle "playchess.com"]
[Source "ChessBase"]
[SourceQuality "1"]
[TimeControl "5400+30"]

1. d4 {[%emt 0:00:06]} f5 {[%emt 0:00:26]} 2. Bg5 {[%emt 0:03:31]} g6 {[%emt 0:00:16]} 3. e3 {[%emt 0:04:24]} Bg7 {[%emt 0:01:02]} 4. Nc3 {[%emt 0:00:51]} c6 {[%emt 0:02:17]} 5. Qd2 {[%emt 0:08:19]} d5 {[%emt 0:07:16]} 6. f3 {[%emt 0:03:50]} Nf6 {[%emt 0:04:31]} 7. Nge2 {[%emt 0:09:09]} Be6 {[%emt 0:03:11]} 8. h3 {[%emt 0:08:04]} Nbd7 {[%emt 0:05:51]} 9. g4 {[%emt 0:01:15]} fxg4 {[%emt 0:00:45]} 10. hxg4 {[%emt 0:01:32]} Bf7 {[%emt 0:02:43]} 11. Bh6 {[%emt 0:22:10]} Bxh6 {[%emt 0:01:31]} 12. Rxh6 {[%emt 0:00:02]} e5 {[%emt 0:00:37]} 13. O-O-O {[%emt 0:00:38]} Qe7 {[%emt 0:01:45]} 14. Rh1 {[%emt 0:05:29]} O-O-O {[%emt 0:17:56]} 15. Ng3 {[%emt 0:03:05]} 1/2-1/2

[Event "XLIV Barbera del Valles-A 2022"]
[Site "Barbera del Valles"]
[Date "2022.07.09"]
[Round "6.5"]
[White "Valenzuela Gomez, Fernando"]
[Black "Shah, Vishwa"]
[Result "1-0"]
[ECO "B07"]
[WhiteElo "2373"]
[BlackElo "1931"]
[Annotator "RC"]
[PlyCount "51"]
[EventDate "2022.07.04"]
[EventType "swiss"]
[EventCountry "ESP"]
[SourceTitle "playchess.com"]
[Source "ChessBase"]
[SourceQuality "1"]
[TimeControl "5400+30"]

1. d4 {[%emt 0:12:32]} Nf6 {[%emt 0:00:05]} 2. Nc3 {[%emt 0:00:03]} d6 {[%emt 0:03:18]} 3. e4 {[%emt 0:03:15]} Nbd7 {[%emt 0:00:06]} 4. f4 {[%emt 0:00:09]} e5 {[%emt 0:12:49]} 5. Nf3 {[%emt 0:02:12]} c6 {[%emt 0:10:47]} 6. dxe5 {[%emt 0:24:10]} dxe5 {[%emt 0:00:05]} 7. Bc4 {[%emt 0:01:54]} Bb4 {[%emt 0:05:28]} 8. O-O {[%emt 0:02:53]} Qc7 {[%emt 0:04:59]} 9. Kh1 {[%emt 0:13:17]} O-O {[%emt 0:02:48]} 10. Qe2 {[%emt 0:06:01]} Bd6 {[%emt 0:14:52]} 11. f5 {[%emt 0:01:39]} b5 {[%emt 0:02:48]} 12. Bd3 {[%emt 0:02:18]} a6 {[%emt 0:06:37]} 13. g4 {[%emt 0:01:20]} c5 {[%emt 0:02:32]} 14. g5 {[%emt 0:00:43]} Ne8 {[%emt 0:03:11]} 15. Nd5 {[%emt 0:00:35]} Qd8 {[%emt 0:00:06]} 16. c4 {[%emt 0:00:29]} Nb6 {[%emt 0:01:13]} 17. b3 {[%emt 0:00:58]} Rb8 {[%emt 0:06:51]} 18. Be3 {[%emt 0:04:30]} Nc7 {[%emt 0:01:42]} 19. Nd2 {[%emt 0:01:48]} Nbxd5 {[%emt 0:05:02]} 20. cxd5 {[%emt 0:00:27]} Na8 {[%emt 0:05:52]} 21. Rac1 {[%emt 0:00:27]} Nb6 {[%emt 0:00:40]} 22. Qh5 {[%emt 0:02:31]} Nd7 {[%emt 0:01:21]} 23. f6 {[%emt 0:04:06]} Re8 {[%emt 0:00:03]} 24. fxg7 {[%emt 0:01:19]} Qe7 {[%emt 0:00:04]} 25. Nf3 {[%emt 0:03:32]} f5 {[%emt 0:02:15]} 26. Nh4 {[%emt 0:01:19]} 1-0

[Event "XLIV Barbera del Valles-A 2022"]
[Site "Barbera del Valles"]
[Date "2022.07.09"]
[Round "6.6"]
[White "Ortiz Verdezoto, Anahi"]
[Black "Dahale, Atul"]
[Result "0-1"]
[ECO "E90"]
[WhiteElo "2046"]
[BlackElo "2162"]
[Annotator "RC"]
[PlyCount "97"]
[EventDate "2022.07.04"]
[EventType "swiss"]
[EventCountry "ESP"]
[SourceTitle "playchess.com"]
[Source "ChessBase"]
[SourceQuality "1"]
[TimeControl "5400+30"]

1. d4 {[%emt 1:31:00]} Nf6 {[%emt 1:31:00]} 2. c4 {[%emt 0:00:30]} g6 {[%emt 0:00:30]} 3. Nc3 {[%emt 0:00:30]} Bg7 {[%emt 0:00:30]} 4. e4 {[%emt 0:00:30]} d6 {[%emt 0:00:30]} 5. h3 {[%emt 0:00:30]} O-O {[%emt 0:00:30]} 6. Bg5 {[%emt 0:00:30]} Na6 {[%emt 0:00:30]} 7. Nf3 {[%emt 0:00:30]} Qe8 {[%emt 0:00:30]} 8. Be2 {[%emt 0:00:30]} e5 {[%emt 0:00:30]} 9. d5 {[%emt 0:00:30]} Nh5 {[%emt 0:00:30]} 10. g3 {[%emt 0:00:30]} h6 {[%emt 0:00:30]} 11. Bd2 {[%emt 0:00:30]} f5 {[%emt 0:00:30]} 12. exf5 {[%emt 0:00:30]} gxf5 {[%emt 0:00:30]} 13. Nh4 {[%emt 0:00:30]} Nf6 {[%emt 0:00:30]} 14. Qc1 {[%emt 0:00:30]} Kh7 {[%emt 0:00:30]} 15. g4 {[%emt 0:00:30]} e4 {[%emt 0:00:30]} 16. gxf5 {[%emt 0:00:30]} Nc5 {[%emt 0:00:30]} 17. Kf1 {[%emt 0:00:30]} Qd8 {[%emt 0:00:30]} 18. Rg1 {[%emt 0:00:30]} Ng8 {[%emt 0:00:30]} 19. Rg4 {[%emt 0:00:30]} Bf6 {[%emt 0:00:30]} 20. Ng6 {[%emt 0:00:30]} Rf7 {[%emt 0:00:30]} 21. Nf4 {[%emt 0:00:30]} Bxf5 {[%emt 0:00:30]} 22. Ne6 {[%emt 0:00:30]} Qe7 {[%emt 0:00:30]} 23. Be3 {[%emt 0:00:30]} Nxe6 {[%emt 0:00:30]} 24. dxe6 {[%emt 0:00:30]} Qxe6 {[%emt 0:00:30]} 25. Qc2 {[%emt 0:00:30]} Re8 {[%emt 0:00:30]} 26. Nxe4 {[%emt 0:00:30]} Kh8 {[%emt 0:00:30]} 27. Bf3 {[%emt 0:00:30]} Bxg4 {[%emt 0:00:30]} 28. hxg4 {[%emt 0:00:30]} Bg7 {[%emt 0:00:30]} 29. Kg2 {[%emt 0:00:30]} Qg6 {[%emt 0:00:30]} 30. Rc1 {[%emt 0:00:30]} Be5 {[%emt 0:00:30]} 31. Ng5 {[%emt 0:00:30]} Rf6 {[%emt 0:00:30]} 32. Be4 {[%emt 0:00:30]} Qg7 {[%emt 0:00:30]} 33. Rh1 {[%emt 0:00:30]} Bf4 {[%emt 0:00:30]} 34. Rh5 {[%emt 0:00:30]} Bxe3 {[%emt 0:00:30]} 35. fxe3 {[%emt 0:00:30]} Re5 {[%emt 0:00:30]} 36. Bf5 {[%emt 0:00:30]} Ne7 {[%emt 0:00:30]} 37. e4 {[%emt 0:00:30]} Nxf5 {[%emt 0:00:30]} 38. exf5 {[%emt 0:00:30]} Kg8 {[%emt 0:00:30]} 39. Ne4 {[%emt 0:00:30]} Qxg4+ {[%emt 0:00:30]} 40. Ng3 {[%emt 0:00:30]} Re3 {[%emt 0:00:30]} 41. Qf2 {[%emt 0:00:30]} Rd3 {[%emt 0:00:30]} 42. Qe1 {[%emt 0:00:30]} Kf8 {[%emt 0:00:30]} 43. Rh1 {[%emt 0:00:30]} Rxf5 {[%emt 0:00:30]} 44. Rxh6 {[%emt 0:00:30]} Qf3+ {[%emt 0:00:30]} 45. Kh3 {[%emt 0:00:30]} Rh5+ {[%emt 0:00:30]} 46. Rxh5 {[%emt 0:00:30]} Qxh5+ {[%emt 0:00:30]} 47. Kg2 Qf3+ {[%emt 0:00:30]} 48. Kh3 {[%emt 0:01:00]} Rd1 {[%emt 0:00:30]} 49. b3 {[%emt 0:00:30]} 0-1

[Event "XLIV Barbera del Valles-A 2022"]
[Site "Barbera del Valles"]
[Date "2022.07.09"]
[Round "6.7"]
[White "Fernandez Aguilar, Francisco"]
[Black "Cuartas, Jaime Alexander"]
[Result "0-1"]
[ECO "A37"]
[WhiteElo "2144"]
[BlackElo "2513"]
[Annotator "TA"]
[PlyCount "62"]
[EventDate "2022.07.04"]
[EventType "swiss"]
[EventCountry "ESP"]
[SourceTitle "playchess.com"]
[Source "ChessBase"]
[SourceQuality "1"]
[TimeControl "5400+30"]

{[%evp 15,62,8,21,12,0,0,37,20,23,29,36,14,20,0,0,0,11,14,39,0,0,0,0,0,0,0,0,0,0,0,0,0,0,0,0,-75,-106,-91,0,0,0,-328,-334,-342,-307,-510,-508,-492,-480]} 1. Nf3 {[%emt 0:00:27]} c5 {[%emt 0:00:05]} 2. c4 {[%emt 0:00:39]} Nc6 {[%emt 0:00:05]} 3. Nc3 {[%emt 0:00:13]} g6 {[%emt 0:00:07]} 4. g3 {[%emt 0:00:16]} Bg7 {[%emt 0:00:06]} 5. Bg2 {[%emt 0:00:08]} d6 {[%emt 0:00:12]} 6. O-O {[%emt 0:00:32]} e6 {[%emt 0:00:19]} 7. e3 {[%emt 0:01:45] 7.e3 is better than 7.d3.} Nge7 {[%emt 0:00:05]} 8. d4 {[%emt 0:00:27]} O-O {[%emt 0:00:05]} 9. dxc5 {[%emt 0:00:48] A37: Symmetrical English vs ...g6: 4 Bg2 Bg7 5 Nf3.} dxc5 {[%emt 0:00:08]} 10. Qc2 {[%emt 0:00:29]} a6 {[%emt 0:03:24]} 11. a3 {[%emt 0:01:09] White is slightly better.} Qc7 {[%emt 0:03:08] [#]} 12. b3 $146 {[%emt 0:01:04]} ({Predecessor:} 12. Rb1 b6 13. b4 cxb4 14. axb4 Bb7 15. c5 bxc5 16. bxc5 Na5 17. Na4 Rab8 18. Ba3 {1-0 (33) Oliva Castaneda,K (2446)-Sanchez Enriquez,O (2374) Figueres 2014}) 12... e5 {[%emt 0:00:53]} 13. Bb2 {[%emt 0:02:32]} (13. Nd2 $5 {[%cal Rc3d5]}) 13... Bf5 {[%emt 0:00:22]} 14. Ne4 {[%emt 0:12:13]} Rfd8 {[%emt 0:05:24]} 15. Rfd1 {[%emt 0:06:14]} Bxe4 {[%emt 0:02:42]} 16. Qxe4 {[%emt 0:00:11]} h6 {[%emt 0:00:07]} (16... f5 {is more complex.} 17. Qc2 e4 18. Ng5 Bxb2 19. Qxb2 Rxd1+ 20. Rxd1 Rd8) 17. g4 {[%emt 0:07:38]} Rd6 {[%emt 0:08:38]} 18. b4 {[%emt 0:27:34]} f5 {[%emt 0:07:09]} 19. gxf5 {[%emt 0:00:06]} gxf5 {[%emt 0:00:05]} 20. Qc2 {[%emt 0:00:41]} cxb4 {[%emt 0:06:37]} 21. Nh4 {[%emt 0:09:47]} e4 {[%emt 0:09:39]} 22. Bxg7 {[%emt 0:01:21]} Kxg7 {[%emt 0:00:08]} 23. axb4 {[%emt 0:01:03]} (23. Qb2+ Kh7 24. axb4 Rg8 $17) 23... Rad8 {[%emt 0:01:58]} 24. Bh3 {[%emt 0:03:54]} Ne5 {[%emt 0:15:54]} 25. Rxd6 {[%emt 0:02:42]} (25. Nxf5+ $2 Nxf5 26. Bxf5 Nf3+ 27. Kf1 Rxd1+ 28. Rxd1 Rxd1+ 29. Qxd1 Qxc4+ 30. Kg2 Nh4+ 31. Kg1 Nxf5 $19) (25. c5 $1 $11 Rxd1+ 26. Rxd1) 25... Qxd6 $17 {[%emt 0:00:20]} 26. Bxf5 {[%emt 0:05:20]} (26. Nxf5+ $2 Nxf5 27. Qxe4 (27. Bxf5 $2 Nf3+ 28. Kf1 Qe5 $19) 27... Nh4 $1 $19 {[%mdl 512]}) 26... Nf3+ {[%emt 0:02:00]} (26... Qf6 $1 $17 27. Qxe4 Nf3+ $1 28. Qxf3 (28. Nxf3 Qxa1+ 29. Kg2 Nxf5 $15) 28... Qxa1+ 29. Kg2 Qf6) 27. Nxf3 $11 {[%emt 0:00:02]} Nxf5 {[%emt 0:00:07] Dancing on a razor blade.} 28. Qc3+ $2 {[%emt 0:06:23][%mdl 8192] [#]} ({Reject} 28. Qxe4 Qg6+ 29. Ng5 Qxg5+ 30. Kh1 Qf6 31. Rg1+ (31. Qxb7+ Kh8 $17) 31... Kh8 $17) (28. Rf1 $11) 28... Kh7 $1 $19 {[%emt 0:00:18]} 29. Ne5 {[%emt 0:05:49]} Re8 {[%emt 0:03:08]} 30. f4 {[%emt 0:02:27]} (30. c5 {is the only way for White.} Qf6 31. Rd1 (31. c6 $2 Rxe5 32. Kf1 bxc6 $19) 31... Qg7+ 32. Kf1 Rxe5 33. Rd8) 30... exf3 $1 {[%emt 0:00:13]} 31. Nxf3 {[%emt 0:00:58]} Rxe3 {[%emt 0:00:35] Weighted Error Value: White=0.45/Black=0.08 (flawless)} 0-1